[Event "44th Chess Olympiad Women 2022"]
[Site "Chennai"]
[Date "2022.08.08"]
[Round "10.1"]
[White "Koneru, Humpy"]
[Black "Abdumalik, Zhansaya"]
[Result "1-0"]
[ECO "D47"]
[WhiteElo "2586"]
[BlackElo "2495"]
[Annotator "TA"]
[PlyCount "111"]
[EventDate "2022.07.29"]
[EventType "team-tourn"]
[EventCountry "IND"]
[SourceTitle "playchess.com"]
[Source "ChessBase"]
[SourceQuality "1"]
[WhiteTeam "India"]
[BlackTeam "Kazakhstan"]
[WhiteTeamCountry "IND"]
[BlackTeamCountry "KAZ"]
[TimeControl "40/5400+30:1800+30"]

{[%evp 16,111,-4,-18,53,52,96,92,128,131,123,144,159,70,75,81,74,80,75,72,74,64,71,79,161,81,152,126,137,156,152,183,197,177,178,170,206,175,264,153,335,328,288,280,435,449,462,468,494,486,518,243,580,575,564,537,617,400,400,400,400,400,400,400,395,264,744,737,754,754,737,617,1756,719,9149,9079,9127,8896,7045,6850,5197,2283,10047,9675,8971,9052,29962,7433,6819,6560,6485,6485,5677,4678,29981,29982,29982,29983]} 1. d4 {[%emt 0:00:06]} Nf6 {[%emt 0:00:19]} 2. c4 {[%emt 0:00:11]} e6 {[%emt 0:00:06]} 3. Nf3 {[%emt 0:00:24]} d5 {[%emt 0:00:06]} 4. Nc3 {[%emt 0:00:16]} c6 {[%emt 0:00:05]} 5. e3 {[%emt 0:00:30]} Nbd7 {[%emt 0:00:30]} 6. Bd3 {[%emt 0:01:16]} dxc4 {[%emt 0:00:32]} 7. Bxc4 {[%emt 0:00:09]} b5 {[%emt 0:00:18]} 8. Bb3 {[%emt 0:00:19]} Bb7 {[%emt 0:03:46]} 9. O-O {[%emt 0:00:56]} a6 {[%emt 0:02:17] D47: Semi-Slav: Meran System.} (9... Be7 $11) 10. e4 $1 {[%emt 0:07:34] 10.e4 scores better than 10.Qe2.} b4 {[%emt 0:09:17]} 11. Na4 $5 {[%emt 0:07:20][%mdl 4] Exploring less charted territory.} Nxe4 {[%emt 0:08:19] White is better.} 12. Re1 $1 {[%emt 0:00:06]} Nef6 {[%emt 0:03:21]} 13. Ng5 $1 {[%emt 0:17:20]} Be7 {[%emt 0:05:57]} 14. Bxe6 {[%emt 0:08:46] [#]} O-O $146 {[%emt 0:12:42]} (14... fxe6 $2 15. Nxe6 Qa5 16. Qe2 $1 $16) ({Predecessor:} 14... fxe6 15. Nxe6 Qa5 16. Nac5 Nxc5 17. dxc5 Kf7 18. Ng5+ Kf8 19. Rxe7 Kxe7 20. Qd6+ Ke8 21. Qe6+ Kd8 22. Nf7+ Kc7 23. Bf4# {1-0 (23) Bluebaum,M (2670)-Seo,J (2453) Chess.com INT 2021}) 15. Qe2 {[%emt 0:06:18] Black must now prevent Bxd7.} Nd5 {[%emt 0:04:51]} 16. Bxd5 {[%emt 0:01:28]} ({But not} 16. Nxf7 Rxf7 17. a3 (17. Bxf7+ Kxf7 18. Qe6+ Kf8 $15) 17... a5 $1 $15) 16... Bxg5 {[%emt 0:00:23]} 17. Bxg5 {[%emt 0:01:02]} Qxg5 {[%emt 0:00:07]} 18. Bf3 {[%emt 0:00:10]} Rad8 {[%emt 0:07:51]} 19. Rad1 {[%emt 0:09:36]} Nf6 {[%emt 0:07:16]} (19... Qb5 $16 20. b3 Qxe2 21. Rxe2 Rfe8) 20. Qe5 {[%emt 0:02:35]} (20. Nc5 $18 Rfe8 21. Qf1) 20... Qg6 {[%emt 0:02:42]} (20... Qxe5 $142 21. dxe5 Nd5) 21. Nc5 $16 {[%emt 0:05:15]} Bc8 {[%emt 0:02:47]} 22. Bxc6 {[%emt 0:05:46]} Ng4 {[%emt 0:01:25]} 23. Qc7 $36 {[%emt 0:00:14][%mdl 2048] Keeping Black busy.} Qc2 {[%emt 0:06:37][%cal Od8d4] aiming for ...Rxd4!} 24. Qf4 {[%emt 0:03:02] Active counter play!} Qxb2 {[%emt 0:00:00]} 25. d5 {[%emt 0:00:41]} Qc2 {[%emt 0:00:10]} 26. Ne4 {[%emt 0:10:52]} Qxa2 {[%emt 0:04:09] [#]} (26... Qb2 {might work better.} 27. f3 Qe5 28. Qxe5 Nxe5) 27. d6 {[%emt 0:00:08]} ({White has to play} 27. h3 $1 $18 {[%cal Rh3g4]}) 27... Be6 {[%emt 0:02:56] [#] Black cannot hold the game after this.} (27... Qc2 $16 28. Rc1 Qb2) 28. h3 $1 $18 {[%emt 0:08:18]} Nh6 {[%emt 0:00:41]} 29. Nc5 {[%emt 0:00:30]} Qc2 {[%emt 0:02:35]} (29... b3 {was called for.} 30. Nb7 Rb8) 30. Qxb4 {[%emt 0:02:02]} ({And not} 30. Nxe6 fxe6 31. Qe4 Qxf2+ 32. Kh1 Nf5 33. Qxe6+ Kh8 $14) 30... Rb8 {[%emt 0:01:38]} 31. Bb7 {[%emt 0:00:03]} Qg6 {[%emt 0:01:15]} 32. d7 {[%emt 0:01:46]} Bxh3 {[%emt 0:01:53]} 33. Qe4 {[%emt 0:00:03]} (33. Qh4 $142 Rxb7 34. Qxh3) 33... Qb6 {[%emt 0:02:04]} (33... Qxe4 {is tougher.} 34. Bxe4 Be6) 34. Qc6 {[%emt 0:00:30]} Qxc6 {[%emt 0:03:05]} 35. Bxc6 {[%emt 0:00:03]} Be6 {[%emt 0:00:07]} 36. Nxa6 {[%emt 0:00:40]} Rbd8 {[%emt 0:00:16]} 37. Nc5 {[%emt 0:00:11]} Ng4 {[%emt 0:00:20]} 38. Nxe6 {[%emt 0:02:25]} fxe6 {[%emt 0:00:04]} 39. Rxe6 {[%emt 0:00:07]} ({Don't play} 39. f3 Nf6 40. Rxe6 Rf7 41. Re8+ Rf8 $18) 39... Nf6 {[%emt 0:02:31]} 40. f3 {[%emt 0:00:44] And now Bb5 would win.} h5 $2 {[%emt 0:02:19]} (40... Rf7 41. Re8+ Rf8) 41. Re7 {[%emt 0:06:44]} Rf7 {[%emt 0:04:54]} 42. Re8+ {[%emt 0:02:57]} Rf8 {[%emt 0:00:04]} 43. Rde1 {[%emt 0:02:51] Threatens to win with Rxd8.} Rxd7 {[%emt 0:02:47]} 44. Bxd7 {[%emt 0:00:06]} (44. Rxf8+ $142 Kxf8 45. Bxd7 Nxd7 46. Kf2) 44... Nxd7 {[%emt 0:00:06]} 45. Kf2 {[%emt 0:00:30]} Rxe8 {[%emt 0:00:36]} 46. Rxe8+ {[%emt 0:00:03][%mdl 4096] Endgame KR-KN} Kf7 {[%emt 0:00:07]} 47. Ra8 {[%emt 0:00:33]} Nf6 {[%emt 0:00:35]} 48. Ra5 {[%emt 0:00:30]} (48. Ra7+ $142 Kg6 49. Ke3) 48... Kg6 {[%emt 0:00:39]} 49. Kg3 {[%emt 0:01:11]} Kh6 {[%emt 0:00:05]} 50. Kf4 {[%emt 0:03:24]} Nh7 {[%emt 0:01:50]} 51. Ke5 {[%emt 0:06:52]} (51. Ra6+ $142 g6 52. Ke5 Kg7 53. Ra7+ Kg8 54. f4 Kh8 55. f5 Nf8 56. Kf6) 51... Kg6 {[%emt 0:02:38]} 52. Ra6+ {[%emt 0:01:30]} Nf6 {[%emt 0:00:59]} 53. Kf4 {[%emt 0:00:13]} h4 {[%emt 0:00:42]} 54. Rc6 {[%emt 0:01:31]} Kh5 {[%emt 0:01:27] [#]} 55. Rxf6 $1 {[%emt 0:00:28][%mdl 512]} gxf6 {[%emt 0:00:05]} 56. Kf5 {[%emt 0:00:04] Weighted Error Value: White=0.28 (precise) /Black=0.83} 1-0

[Event "44th Chess Olympiad Women 2022"]
[Site "Chennai"]
[Date "2022.08.08"]
[Round "10.2"]
[White "Dzagnidze, Nana"]
[Black "Kashlinskaya, Alina"]
[Result "1/2-1/2"]
[ECO "D38"]
[WhiteElo "2531"]
[BlackElo "2505"]
[Annotator "TA"]
[PlyCount "94"]
[EventDate "2022.07.29"]
[EventType "team-tourn"]
[EventCountry "IND"]
[SourceTitle "playchess.com"]
[Source "ChessBase"]
[SourceQuality "1"]
[WhiteTeam "Georgia"]
[BlackTeam "Poland"]
[WhiteTeamCountry "GEO"]
[BlackTeamCountry "POL"]
[TimeControl "40/5400+30:1800+30"]

{[%evp 13,94,0,0,-16,-24,-46,-35,-60,-5,-71,-5,-68,-73,-68,-67,-80,-61,-63,-58,-78,0,0,0,0,-7,0,0,0,0,-11,0,-11,0,-45,-44,-45,-43,-45,-47,-55,-57,-58,-58,-58,-38,-41,-45,-61,-49,-49,-49,-41,-41,-43,-50,-50,-50,-50,-50,-58,-57,-58,-58,-58,-58,-58,-58,-58,-58,-58,-57,-57,-57,-58,0,-58,-59,-59,-59,-59,-60,-59,-66]} 1. d4 {[%emt 0:00:04]} Nf6 {[%emt 0:00:11]} 2. c4 {[%emt 0:00:05]} e6 {[%emt 0:00:07]} 3. Nf3 {[%emt 0:00:09]} d5 {[%emt 0:00:09]} 4. Nc3 {[%emt 0:00:11]} Bb4 {[%emt 0:00:09]} 5. Qa4+ {[%emt 0:00:17]} Nc6 {[%emt 0:00:06][%cal Bb8c6,Bc6a5,Ba5b3][%mdl 32]} 6. a3 {[%emt 0:00:07]} Bxc3+ {[%emt 0:00:11]} 7. bxc3 {[%emt 0:00:02]} Bd7 {[%emt 0:04:15][%cal Oc6d4]} 8. Qc2 {[%emt 0:06:32] D38: Queen's Gambit Declined: Ragozin Defence (4 Nf3 Bb4).} dxc4 {[%emt 0:18:34]} 9. e4 {[%emt 0:01:00]} Na5 $1 {[%emt 0:01:16][%cal Oc7c5]} 10. Bg5 {[%emt 0:10:19]} h6 {[%emt 0:02:48]} ({Better is} 10... Bc6 $15 11. e5 Bxf3 12. gxf3 Qd5) 11. Bh4 {[%emt 0:00:20] [#]} (11. Bxf6 $11 {remains equal.} gxf6 12. Be2) 11... g5 $1 {[%emt 0:07:26][%mdl 4] 11...g5 is setting a new trend.} ({Black should try} 11... Bc6 $1 $17 {[%cal Rc6e4]} 12. Nd2 g5) 12. Bg3 {[%emt 0:13:17]} (12. Nxg5 $1 $11 hxg5 13. Bxg5) 12... Bc6 $1 $15 {[%emt 0:02:26]} 13. Nd2 {[%emt 0:06:01]} Nb3 $1 {[%emt 0:02:46]} 14. Nxb3 {[%emt 0:00:13] And now Nd2 would win.} cxb3 {[%emt 0:04:20]} 15. Qxb3 {[%emt 0:00:07]} Nxe4 {[%emt 0:00:23]} 16. Be5 $1 {[%emt 0:01:24] [#]} O-O $146 {[%emt 0:18:38]} (16... Rg8 $17) ({Predecessor:} 16... f6 17. Qxe6+ Qe7 18. Qxe7+ Kxe7 19. Bxc7 Nxc3 20. Ba5 Nd5 21. f3 Ne3 22. Kf2 Nxf1 23. Rhxf1 Bd5 24. Rfe1+ Kd7 25. Bc7 {½-½ (25) Edouard,R (2590)-Peralta,F (2585) Barcelona 2022}) 17. f3 $11 {[%emt 0:07:48]} Nd6 {[%emt 0:00:31]} 18. Bd3 {[%emt 0:01:30]} f6 {[%emt 0:01:43]} 19. Bg3 {[%emt 0:04:02]} ({Don't blunder} 19. Qxe6+ $2 Kg7 20. Kd2 Bd7 $19) 19... Kg7 {[%emt 0:00:19]} 20. O-O {[%emt 0:15:45]} Qd7 {[%emt 0:02:05]} 21. Rfe1 {[%emt 0:01:55]} Rae8 {[%emt 0:03:12]} 22. c4 {[%emt 0:04:09]} b6 {[%emt 0:06:12]} 23. Rac1 {[%emt 0:05:39]} Nf5 {[%emt 0:01:55]} 24. Bxf5 {[%emt 0:02:10]} exf5 {[%emt 0:00:09]} 25. d5 {[%emt 0:00:04]} Ba4 {[%emt 0:00:52]} 26. Qc3 {[%emt 0:01:27]} Rxe1+ {[%emt 0:02:53]} 27. Rxe1 {[%emt 0:00:10]} f4 {[%emt 0:00:25]} 28. Bf2 {[%emt 0:00:10]} Re8 {[%emt 0:00:24]} (28... Qf5 {with more complications.} 29. Qb4 Bd7 30. Bd4 Rf7) 29. Rxe8 {[%emt 0:02:14]} Qxe8 $15 {[%emt 0:00:03][%mdl 4096] Endgame KQB-KQB} 30. c5 {[%emt 0:02:10]} Qe5 {[%emt 0:04:08]} 31. Bd4 {[%emt 0:05:34]} Qxd5 {[%emt 0:00:37]} 32. cxb6 {[%emt 0:00:06]} cxb6 {[%emt 0:00:54]} 33. Bxf6+ {[%emt 0:00:08]} Kg6 {[%emt 0:01:55]} 34. Bd4 {[%emt 0:01:04]} Qb3 {[%emt 0:02:04]} 35. Qxb3 {[%emt 0:00:46]} Bxb3 {[%emt 0:00:07] KB-KB} 36. Kf2 {[%emt 0:00:07]} h5 {[%emt 0:03:12]} 37. h3 {[%emt 0:01:49]} Kf5 {[%emt 0:04:24]} 38. Ke1 {[%emt 0:00:18]} Bc4 {[%emt 0:01:11]} 39. Kf2 {[%emt 0:00:07]} Bd3 {[%emt 0:00:22]} 40. Ke1 {[%emt 0:00:13]} Ke6 {[%emt 0:00:11]} 41. Kf2 {[%emt 0:30:06]} h4 {[%emt 0:16:01]} 42. Ke1 {[%emt 0:00:00]} Kf5 {[%emt 0:03:31]} 43. Kf2 {[%emt 0:00:00]} Ke6 {[%emt 0:01:50]} 44. Ke1 $1 {[%emt 0:00:00]} Bc4 {[%emt 0:01:08] Black is slightly better.} 45. Kf2 {[%emt 0:00:00]} Bd5 {[%emt 0:00:03]} 46. Ke1 {[%emt 0:00:00]} Kf5 {[%emt 0:04:07]} 47. Ke2 {[%emt 0:00:00]} Bc4+ {[%emt 0:00:15] Weighted Error Value: White=0.09 (flawless) /Black=0.10 (very precise)} 1/2-1/2

[Event "44th Chess Olympiad Women 2022"]
[Site "Chennai"]
[Date "2022.08.08"]
[Round "10.2"]
[White "Javakhishvili, Lela"]
[Black "Kiolbasa, Oliwia"]
[Result "1/2-1/2"]
[ECO "E05"]
[WhiteElo "2476"]
[BlackElo "2376"]
[Annotator "TA"]
[PlyCount "80"]
[EventDate "2022.07.29"]
[EventType "team-tourn"]
[EventCountry "IND"]
[SourceTitle "playchess.com"]
[Source "ChessBase"]
[SourceQuality "1"]
[WhiteTeam "Georgia"]
[BlackTeam "Poland"]
[WhiteTeamCountry "GEO"]
[BlackTeamCountry "POL"]
[TimeControl "40/5400+30:1800+30"]

{[%evp 21,80,7,24,16,8,14,11,16,28,26,43,13,6,17,15,18,4,14,35,0,7,3,15,0,37,36,41,27,33,31,23,15,19,-2,4,-12,-7,-73,-69,-78,-73,-99,-102,-105,-95,-116,-118,-118,-118,-70,-31,-7,0,0,3,3,3,3,3,3,3]} 1. c4 {[%emt 0:00:05]} e6 {[%emt 0:00:12]} 2. g3 {[%emt 0:00:13]} d5 {[%emt 0:00:12]} 3. Bg2 {[%emt 0:00:11]} Nf6 {[%emt 0:00:41]} 4. d4 {[%emt 0:01:07]} Be7 {[%emt 0:00:53]} 5. Nf3 {[%emt 0:00:26]} O-O {[%emt 0:00:14]} 6. O-O {[%emt 0:00:20]} dxc4 {[%emt 0:00:24]} 7. Qa4 {[%emt 0:00:48]} a6 {[%emt 0:06:23]} 8. Qxc4 {[%emt 0:00:08]} b5 {[%emt 0:00:20]} 9. Qc2 {[%emt 0:00:05]} Bb7 {[%emt 0:00:36]} 10. Bd2 {[%emt 0:00:08]} Be4 {[%emt 0:08:21]} 11. Qc1 {[%emt 0:00:08]} Qc8 {[%emt 0:02:17]} 12. Bg5 {[%emt 0:13:42] E05: Open Catalan: 5 Nf3 Be7.} Nbd7 {[%emt 0:11:06]} 13. Nbd2 {[%emt 0:00:39]} Bb7 {[%emt 0:00:52]} 14. Nb3 {[%emt 0:05:51]} c5 {[%emt 0:06:36]} 15. Bxf6 {[%emt 0:06:02]} gxf6 {[%emt 0:13:23]} 16. dxc5 {[%emt 0:15:43]} (16. Qh6 {is interesting.} c4 17. Na5 Bd5 18. Rfe1) 16... Nxc5 {[%emt 0:00:57]} 17. Na5 {[%emt 0:00:21]} Bd5 {[%emt 0:02:35]} 18. Nd4 {[%emt 0:00:56] [#] Nac6 is the strong threat.} Bxg2 $146 {[%emt 0:06:52]} ({Predecessor:} 18... Ne4 19. Qf4 f5 20. Rac1 Qd7 21. Rc7 Qd6 22. Bxe4 Bxe4 23. Ndc6 Qxf4 24. Nxe7+ Kh8 {½-½ (60) Medvegy,Z (2504)-Borriss,M (2463) Germany 2007}) 19. Kxg2 {[%emt 0:00:07]} Re8 {[%emt 0:00:37]} (19... Qc7 $5 {[%cal Rc7a5]} 20. Nac6 Rac8 $11) 20. Rd1 {[%emt 0:08:29]} Bf8 {[%emt 0:03:37]} 21. Qe3 {[%emt 0:01:47]} e5 {[%emt 0:06:39]} 22. Ndc6 {[%emt 0:03:04] Hoping for Rdc1. Pair of Knights!} Qf5 {[%emt 0:03:26]} 23. Rac1 {[%emt 0:09:17]} Ne4 {[%emt 0:00:20][%cal Of8h6,Bc5e4,Be4d6,Bd6c4][%mdl 32]} 24. Qf3 {[%emt 0:06:42] Active counter play!} Qxf3+ {[%emt 0:07:21]} 25. Kxf3 {[%emt 0:01:30]} f5 {[%emt 0:01:35]} 26. Rd5 {[%emt 0:03:37]} Rac8 {[%emt 0:02:04]} 27. Nb3 {[%emt 0:05:32]} f6 {[%emt 0:01:20]} 28. Kg2 {[%emt 0:04:50]} (28. Rd7 {seems wilder.} Nc5 29. Nxc5 Rxc6 30. b4) 28... Nd6 {[%emt 0:02:37] Threatens to win with ...Nc4.} 29. Nba5 {[%emt 0:03:55] Inhibits Nc4.} (29. Nb4 $11) 29... Nc4 $1 $17 {[%emt 0:01:11] And now ...Nxa5 would win.} 30. Rb1 {[%emt 0:00:21]} Re6 $1 {[%emt 0:03:50][%cal Be8e6,Be6b6,Bb6b5][%mdl 32]} 31. Nxc4 {[%emt 0:00:59]} bxc4 {[%emt 0:00:27]} 32. Na5 {[%emt 0:00:07] [#]} Rb6 $1 {[%emt 0:00:22]} 33. Rc1 {[%emt 0:07:06] [#]} Rb5 $1 {[%emt 0:02:26]} 34. Rxb5 {[%emt 0:00:03]} axb5 {[%emt 0:00:04][%mdl 4096] Endgame KRB-KRN} 35. a3 {[%emt 0:00:03]} Ra8 {[%emt 0:01:38]} 36. Nc6 {[%emt 0:00:06]} Ra6 {[%emt 0:00:06] The position is equal.} 37. Nb8 {[%emt 0:00:58]} Rb6 {[%emt 0:03:36]} 38. Nd7 {[%emt 0:00:07]} Rd6 {[%emt 0:00:02]} 39. Nxf8 {[%emt 0:00:20]} Kxf8 {[%emt 0:00:04]} 40. a4 {[%emt 0:01:18]} bxa4 {[%emt 0:02:08] Weighted Error Value: White=0.11 (very precise) /Black=0.06 (flawless)} 1/2-1/2

[Event "44th Chess Olympiad Women 2022"]
[Site "Chennai"]
[Date "2022.08.08"]
[Round "10.2"]
[White "Socko, Monika"]
[Black "Batsiashvili, Nino"]
[Result "0-1"]
[ECO "A61"]
[WhiteElo "2416"]
[BlackElo "2466"]
[Annotator "TA"]
[PlyCount "167"]
[EventDate "2022.07.29"]
[EventType "team-tourn"]
[EventCountry "IND"]
[SourceTitle "playchess.com"]
[Source "ChessBase"]
[SourceQuality "1"]
[WhiteTeam "Poland"]
[BlackTeam "Georgia"]
[WhiteTeamCountry "POL"]
[BlackTeamCountry "GEO"]
[TimeControl "40/5400+30:1800+30"]

{[%evp 18,167,31,26,33,33,35,29,35,25,34,23,39,51,39,36,41,25,30,37,33,36,29,25,31,17,27,14,47,41,88,91,90,87,92,89,88,68,52,0,0,0,0,0,34,0,0,-173,-176,-245,-254,-329,-238,-305,-314,-295,-283,-261,-248,-247,-154,-146,-152,-150,-122,-210,-208,-176,-208,-170,0,-125,-138,-109,-147,-131,-77,-140,-97,-157,-166,-183,-200,-210,-196,-179,0,-166,-131,-154,-142,-148,-11,-82,-10,-12,-11,-10,-10,-70,-58,-117,-23,-36,-18,-15,-8,-8,-8,-8,-8,-8,-8,-8,-8,-8,-8,-8,-8,-150,-150,-1107,-150,-150,-150,-150,-150,-150,-150,-150,-150,-150,-150,-150,-150,-150,-150,-150,-123,-140,-140,-150,-150,-608,-316,-4141,-4141,-29988,-29989,-29989,-29990,-29990]} 1. d4 {[%emt 0:00:03]} Nf6 {[%emt 0:00:04]} 2. c4 {[%emt 0:00:12]} e6 {[%emt 0:00:11]} 3. Nf3 {[%emt 0:00:04]} c5 {[%emt 0:00:06]} 4. d5 {[%emt 0:01:05]} exd5 {[%emt 0:00:06]} 5. cxd5 {[%emt 0:00:04]} d6 {[%emt 0:00:11]} 6. Nc3 {[%emt 0:00:22]} g6 {[%emt 0:00:14]} 7. h3 {[%emt 0:01:24]} Bg7 {[%emt 0:00:34]} 8. Bf4 {[%emt 0:00:17]} O-O {[%emt 0:04:20]} 9. e3 {[%emt 0:00:13]} a6 {[%emt 0:02:15]} 10. a4 $1 {[%emt 0:00:05]} Ne8 {[%emt 0:00:03] A61: Modern Benoni: Nf3 without early e4.} 11. Be2 {[%emt 0:01:16]} Nd7 {[%emt 0:00:09]} 12. O-O {[%emt 0:01:19]} Ne5 $1 {[%emt 0:00:16][%mdl 4] White has an edge. is now more promising than 12...Qe7.} 13. Nd2 {[%emt 0:05:14][%cal Bf3d2,Bd2c4,Bc4b6][%mdl 32]} f5 {[%emt 0:04:49]} 14. Bh2 {[%emt 0:02:11] [#]} g5 $146 {[%emt 0:07:20]} ({Predecessor:} 14... Bd7 15. Kh1 Rb8 16. a5 Nc7 17. f4 Nf7 18. e4 Nb5 19. Nxb5 Bxb5 20. Bxb5 axb5 {0-1 (27) Checa,N (2527)-Yurtseven,M (2391) Chess.com INT 2020}) 15. f4 {[%emt 0:05:15]} gxf4 {[%emt 0:00:05]} 16. exf4 {[%emt 0:01:05]} Ng6 {[%emt 0:00:11]} 17. Nc4 {[%emt 0:05:16]} Bd7 {[%emt 0:04:19]} 18. a5 {[%emt 0:09:01]} Bb5 {[%emt 0:04:01]} 19. Nb6 {[%emt 0:04:52]} Bxe2 {[%emt 0:01:17]} 20. Qxe2 {[%emt 0:00:06]} Rb8 {[%emt 0:00:05]} 21. Rae1 {[%emt 0:02:21]} Nc7 {[%emt 0:05:49]} 22. Kh1 {[%emt 0:01:36]} Rf7 {[%emt 0:06:44]} 23. g4 {[%emt 0:09:53]} Qh4 {[%emt 0:06:10]} (23... Qf6 $14 {feels stronger.}) 24. gxf5 $16 {[%emt 0:06:48]} Rxf5 {[%emt 0:21:57]} 25. Qg4 {[%emt 0:00:46]} Rbf8 {[%emt 0:03:19]} 26. Ne4 {[%emt 0:10:43]} Nb5 {[%emt 0:02:32]} 27. Ng5 {[%emt 0:10:26]} h5 {[%emt 0:01:38]} 28. Qxh4 {[%emt 0:03:12]} (28. Qg1 $14 Bd4 29. Qg2 (29. Nf3 Bxg1 30. Nxh4 Nxh4 $11) 29... Rxf4 30. Nf3 (30. Bxf4 Nxf4 31. Nd7 Qxe1 $11) 30... Rxf3 31. Qxg6+ Bg7 32. Rg1) 28... Nxh4 $11 {[%emt 0:00:01]} 29. Ne6 {[%emt 0:00:08]} R8f7 {[%emt 0:01:52]} 30. Nc8 {[%emt 0:02:07]} Rxd5 {[%emt 0:03:43][%cal Bf5d5,Bd5d3,Bd3h3][%mdl 32]} 31. Ng5 {[%emt 0:01:07]} (31. Nd8 $5 {[%cal Re1e8]} Bf8 32. Nxf7 Kxf7 33. Rd1 Rxd1 34. Rxd1 $11) 31... Nf5 {[%emt 0:00:19] Prevents Ne7+.} 32. Nxf7 {[%emt 0:01:19]} (32. Rg1 $1 $11 {and White stays safe.}) 32... Kxf7 $19 {[%emt 0:00:01]} 33. Re2 {[%emt 0:01:22]} (33. Rg1 $142) 33... Rd3 {[%emt 0:00:17]} 34. Rg1 {[%emt 0:01:00]} Rxh3 {[%emt 0:03:47] Active counter play!} 35. Reg2 {[%emt 0:05:00]} Bd4 {[%emt 0:01:59] Dancing on a razor blade.} 36. Re1 {[%emt 0:01:10]} Bf6 {[%emt 0:01:38] Prevents Rg5.} 37. Rd2 {[%emt 0:01:39]} Nbd4 {[%emt 0:00:43]} 38. Red1 {[%emt 0:00:34]} h4 {[%emt 0:01:47] ...Bd8 is the strong threat.} 39. Rd3 {[%emt 0:02:33]} Rxd3 {[%emt 0:02:10]} 40. Rxd3 {[%emt 0:00:02]} Ke6 {[%emt 0:01:33]} 41. Rd1 {[%emt 0:34:40]} (41. Nb6 $17) 41... Nb3 {[%emt 0:40:27] Pair of Knights!} 42. Re1+ {[%emt 0:02:29]} Kf7 {[%emt 0:00:00]} 43. Rd1 {[%emt 0:00:00]} Ke6 {[%emt 0:00:00]} (43... Nxa5 44. Nxd6+ Nxd6 45. Rxd6 $17) (43... Bxb2 44. Rb1 $11) 44. Re1+ {[%emt 0:00:00]} Kd7 {[%emt 0:00:00]} 45. Nb6+ {[%emt 0:00:00]} Kc6 {[%emt 0:00:00]} 46. Nc4 {[%emt 0:00:00]} Nbd4 {[%emt 0:00:00]} ({Black should play} 46... Bd4 {aiming for ...Kb5.} 47. Bg1 Kb5) 47. Bg1 {[%emt 0:00:00]} (47. Kg2 $142) 47... Nf3 {[%emt 0:00:00]} 48. Re6 {[%emt 0:00:00] [#]} (48. Re8 $142) 48... h3 $1 $17 {[%emt 0:00:00][%cal Rf5g3]} 49. Bh2 {[%emt 0:00:00] Prevents Ng3+.} Bd4 {[%emt 0:00:00] White must now prevent ...Kd5.} 50. Rg6 {[%emt 0:00:00]} N3h4 {[%emt 0:00:00]} 51. Rg4 {[%emt 0:00:00]} Nf3 {[%emt 0:00:00]} 52. Rg6 {[%emt 0:00:00]} Kd5 {[%emt 0:00:32]} 53. b3 {[%emt 0:00:00]} Bc3 {[%emt 0:00:47]} 54. Bg1 {[%emt 0:00:00]} N3h4 {[%emt 0:00:23]} (54... Bb4 $17 {Threatens to win with ...Ke4.} 55. Ne3+ Nxe3 56. Bxe3 Bxa5) 55. Rg4 {[%emt 0:00:00]} (55. Rg8 $1 $11) 55... Be1 {[%emt 0:01:16]} ({Black should try} 55... Bb4 $1 $17) 56. Kh2 $11 {[%emt 0:00:00]} Ke4 {[%emt 0:00:21]} 57. Kxh3 {[%emt 0:00:00]} Nf3 {[%emt 0:01:09]} 58. Rg6 {[%emt 0:00:00]} (58. Rg8 $11) 58... d5 $15 {[%emt 0:00:55]} 59. Ne5 {[%emt 0:02:35]} (59. Nb6 $15 Nxg1+ 60. Rxg1) 59... Nxg1+ {[%emt 0:03:30]} ({Much weaker is} 59... Nxe5 $6 60. fxe5 Kxe5 61. Bh2+ Kd4 62. Bg1+ Ke5 63. Bh2+ Kd4 64. Bg1+ Ke5 $11) (59... Bxa5 $6 60. Bxc5 d4 61. b4 $11) (59... Bb4 $17 60. Nxf3 Kxf3) 60. Rxg1 $11 {[%emt 0:00:23]} Bxa5 $17 {[%emt 0:00:01][%mdl 4096] Endgame KRN-KBN} 61. Nd7 {[%emt 0:02:07]} Bb4 {[%emt 0:00:46] And now ...d4 would win.} ({Don't play} 61... Kxf4 62. Rf1+ Ke4 63. Nxc5+ Kd4 64. Nxb7 $16) 62. Nf6+ {[%emt 0:00:59]} Kxf4 {[%emt 0:00:08]} 63. Nxd5+ {[%emt 0:00:15]} Ke5 {[%emt 0:00:11]} 64. Nb6 {[%emt 0:00:26]} Nd4 {[%emt 0:01:18]} 65. Rg7 {[%emt 0:02:46]} Nxb3 {[%emt 0:00:06]} 66. Rxb7 {[%emt 0:00:01]} Kd4 {[%emt 0:00:50] next ...c4 is good for Black.} 67. Kg3 {[%emt 0:00:31]} c4 {[%emt 0:00:45]} 68. Na4 {[%emt 0:01:01]} (68. Rd7+ $1 $11 {was the only way to keep the balance.} Kc5 69. Nd5) 68... a5 $1 {[%emt 0:00:21]} 69. Rd7+ $2 {[%emt 0:00:54]} (69. Kf3 $17) 69... Ke4 $2 {[%emt 0:00:42]} (69... Ke3 $19 70. Rd8 c3) 70. Kf2 {[%emt 0:01:27]} c3 $1 {[%emt 0:00:12]} 71. Nxc3+ {[%emt 0:00:27]} Bxc3 {[%emt 0:00:06]} 72. Ke2 {[%emt 0:00:04]} Nd4+ {[%emt 0:00:31]} 73. Kd1 {[%emt 0:00:00]} Kd3 {[%emt 0:00:07]} 74. Kc1 {[%emt 0:00:25]} Kc4 {[%emt 0:00:08]} 75. Rb7 {[%emt 0:00:44]} Bb4 {[%emt 0:00:12] Strongly threatening ...Kb3.} 76. Kb2 {[%emt 0:00:07]} Nb5 {[%emt 0:00:33]} 77. Rh7 {[%emt 0:01:08]} Bc5 {[%emt 0:00:27]} 78. Rh4+ {[%emt 0:01:06]} Bd4+ {[%emt 0:00:07]} ({Don't go for} 78... Nd4 $2 79. Rf4) 79. Ka2 {[%emt 0:00:07]} Kb4 {[%emt 0:01:03] Hoping for ...a4.} 80. Rg4 $2 {[%emt 0:00:06]} (80. Rh3 $17) 80... a4 $1 $19 {[%emt 0:00:51][%cal Ba5a4,Ba4a3][%mdl 32]} 81. Rh4 $2 {[%emt 0:00:12] [#]} (81. Rg8) 81... a3 $1 {[%emt 0:00:31] ( -> ...Nc3+)} 82. Rg4 {[%emt 0:00:09]} Nc3+ {[%emt 0:00:11]} 83. Ka1 {[%emt 0:00:01] [#]} Ne2+ $1 {[%emt 0:00:19]} 84. Kb1 {[%emt 0:04:10] Weighted Error Value: White=0.20 (precise) /Black=0.26 (precise)} 0-1